Cogmind - Beta 14 @@@ ROGUE MODE // 2024.08.22 @ 22:47:01 Player: Kio Result: Destroyed by G-47 Trooper with Particle Gun Performance ------------- Evolutions (0) 0 Regions Visited (2) 400 Robots Destroyed (19) 95 Value Destroyed (465) 465 Prototype IDs (0) 0 Alien Tech Used (0) 0 Bonus (0) 0 TOTAL SCORE: 960 Bonus ------- None Cogmind --------- Core Integrity 0/250 Matter 263/300 Energy 250/250 System Corruption 2% Temperature Cool (36) Movement Walking (120) Location -10/Mines Parts ------- > --- POWER (1) -------- Ion Engine > --- PROPULSION (2) --- Aluminum Leg Aluminum Leg > --- UTILITY (2) ------ Small Storage Unit Signal Interpreter > --- WEAPON (2) ------- EM Pulse Gun Small Laser > --- INVENTORY (8) ---- Ion Engine Wheel Improved Heat Sink Medium Matter Pod (100) Sensor Array Targeting Computer Assault Rifle Datajack Peak State ------------ > --- POWER ------------ Light Nuclear Core > --- PROPULSION ------- Aluminum Leg Aluminum Leg > --- UTILITY ---------- Heat Sink Small Storage Unit > --- WEAPON ----------- Small Laser Light Assault Rifle > --- INVENTORY -------- Ion Engine Aluminum Leg Aluminum Leg Aluminum Leg Aluminum Leg Wheel Medium Matter Pod Datajack [Rating: 9] Favorites ----------- Power Light Nuclear Core Engine Light Ion Engine Power Core Light Nuclear Core Propulsion Aluminum Leg Treads Light Treads Leg Aluminum Leg Utility Small Storage Unit Device Seismic Detector Storage Small Storage Unit Processor Signal Interpreter Weapon Small Laser Energy Gun Small Laser Ballistic Gun Assault Rifle Special Weapon Mining Laser Special Melee Weapon Datajack Build | -11 -10 -10 ------- Run | Yrd Mat Min Slots Evolved . | . . . Power . | . . . Propulsion . | . . . Utility . | . . . Weapon . | . . . Parts Attached 41 | 7 23 11 Power 6 | 1 3 2 Engine 4 | 1 1 2 Core 2 | . 2 . Reactor . | . . . Propulsion 15 | 2 8 5 Treads 2 | 2 . . Leg 13 | . 8 5 Wheel . | . . . Hover . | . . . Flight . | . . . Utility 8 | 2 5 1 Device 5 | 1 4 . Storage 2 | 1 . 1 Processor 1 | . 1 . Hackware . | . . . Protection . | . . . Artifact . | . . . Weapon 12 | 2 7 3 Energy Gun 5 | . 3 2 Energy Cannon . | . . . Ballistic Gun 5 | 2 2 1 Ballistic Cannon . | . . . Launcher . | . . . Special Weapon 1 | . 1 . Impact Weapon . | . . . Slashing Weapon . | . . . Piercing Weapon . | . . . Special Melee Weapon 1 | . 1 . Unidentified Prototypes . | . . . Parts Lost 6 | . 6 . Power 1 | . 1 . Propulsion 2 | . 2 . Utility 1 | . 1 . Weapon 2 | . 2 . Highest Loss Streak 6 | . 6 . To Critical Strikes . | . . . Average Slot Usage (%) 97 | . 96 99 Engine 6 | . 5 8 Core 7 | . 8 5 Treads 5 | . 9 . Leg 22 | . 18 28 Device 6 | . 10 . Storage 14 | . 14 14 Processor 5 | . . 14 Energy Gun 16 | . 12 23 Ballistic Gun 10 | . 14 4 Peak Build Rating 9 | 8 9 9 Average Rating 7 | 6 8 8 On Entrance 5 | . 8 9 Naked Turns . | . . . Heaviest Build 14 | 13 13 14 Greatest Support 40 | 40 40 20 Greatest Overweight (x) . | . . . Average Overweight (x) . | . . . Largest Inventory Capacity 8 | 8 8 8 Average Capacity 7 | 7 8 8 Most Carried 8 | 8 8 8 Average Carried 7 | 5 7 7 Final Capacity 8 | 8 8 8 Final Carried 8 | 8 8 8 Class Distribution -------------------- 51% | Scavenger-Mutant 48% | Mutant Dominant Class ---------------- Scavenger-Mutant | -10/Materials Scavenger-Mutant | -10/Mines Resources | -11 -10 -10 ----------- Run | Yrd Mat Min Matter Collected 921 | 287 278 356 Remotely . | . . . Salvage Created 574 | 137 245 192 Parts 39 | 11 16 12 Haulers Intercepted . | . . . Recyclers Shooed 1 | . . 1 Parts Field Recycled . | . . . Retrieved Matter . | . . . Parts Self-Destructed . | . . . Prevented . | . . . Kills | -11 -10 -10 ------- Run | Yrd Mat Min Combat Hostiles Destroyed 12 | . 8 4 Guns 11 | . 7 4 Cannons 1 | . 1 . Classes Destroyed 5 | 2 2 1 Tunneler 4 | 4 . . Recycler 2 | 1 . 1 Watcher 1 | . 1 . Swarmer 2 | . . 2 Grunt 10 | . 8 2 Best Kill Streak 4 | 2 4 2 Combat Bots Only 4 | . 4 2 Max Kills in Single Turn 1 | 1 1 1 Gunslinging . | . . . Exploded . | . . . Melee . | . . . Uniques/NPCs Destroyed . | . . . Combat | -11 -10 -10 -------- Run | Yrd Mat Min Hostile Shots Fired 135 | . 92 43 Missed 32 | . 20 12 Damage Taken 1272 | . 927 345 Core 264 | . 146 118 Absorbed by Shields . | . . . Core Remaining (%) 100 | 100 . . Volleys Fired 98 | 23 50 25 Largest 2 | 2 2 2 Hottest 120 | 40 120 80 Shots Fired 185 | 46 89 50 Gun 178 | 46 82 50 Cannon . | . . . Launcher . | . . . Special 7 | . 7 . Kinetic 94 | 46 48 . Thermal 90 | . 41 49 Explosive . | . . . Electromagnetic 1 | . . 1 Robot Hit Streak 16 | 5 16 6 Robot Miss Streak 6 | 3 5 6 Penetration Max . | . . . Secondary Targets 2 | . 1 1 Max Gunslinging Chain 1 | . 1 1 Shots Hit Robots 108 | 28 51 29 Core Hits 35 | 6 18 11 Critical Kills . | . . . Critical Parts Destroyed . | . . . Critical Strikes . | . . . Melee Attacks 1 | . 1 . Impact . | . . . Slashing . | . . . Piercing . | . . . Sneak Attacks 1 | . 1 . Combat Hostiles . | . . . Follow-up Attacks . | . . . Damage Inflicted 1304 | 348 628 328 Guns 1208 | 348 532 328 Cannons . | . . . Explosions . | . . . Melee . | . . . Ramming . | . . . Kinetic 714 | 348 366 . Thermal 577 | . 262 315 Explosive . | . . . Electromagnetic 13 | . . 13 Impact . | . . . Slashing . | . . . Piercing . | . . . Highest Corruption 2 | . 2 2 Average Corruption 2 | . 2 2 Corruption Purged . | . . . Corruption Blocked . | . . . Effects 10 | . 5 5 Message Errors 2 | . 1 1 Matter Fused 3 | . 2 1 Heat Flow Errors 1 | . 1 . Energy Discharges 2 | . . 2 Parts Rejected 1 | . 1 . Data Loss (major) 1 | . . 1 Overload Shots . | . . . Overflow Damage . | . . . Projectiles . | . . . Explosions . | . . . Melee . | . . . Knockbacks . | . . . Impact . | . . . Kinetic . | . . . Secondary . | . . . Self-Inflicted Damage . | . . . Shots . | . . . Rammed . | . . . Targets Rammed . | . . . Kicked . | . . . Crushed . | . . . Highest Temperature 357 | . 344 357 Average Temperature 128 | . 104 158 Received Heat Transfer 681 | . 537 144 Effects 1 | . . 1 Short Circuit 1 | . . 1 Siege Activations . | . . . Robots Corrupted . | . . . Combat Hostiles . | . . . Parts Fried . | . . . Impact Corruptions . | . . . Robots Melted . | . . . Combat Hostiles . | . . . Parts Melted 1 | . . 1 Heat Transferred 1300 | . 575 725 Parts Sabotaged . | . . . Parts Stolen . | . . . Parts Stripped . | . . . Power Chain Reactions . | . . . Alert | -11 -10 -10 ------- Run | Yrd Mat Min Peak Influence 183 | 25 145 183 Initial 48 | . 16 48 Average 93 | 12 84 152 Maximum Alert Level . | . . . Low Security (%) 100 | 100 100 100 Level 1 . | . . . Level 2 . | . . . Level 3 . | . . . Level 4 . | . . . Level 5 . | . . . High Security . | . . . Max Security . | . . . Squads Dispatched 2 | . 2 . Investigation 1 | . 1 . Extermination . | . . . Reinforcement 1 | . 1 . Assault . | . . . Garrison . | . . . Intercept . | . . . Searches Triggered . | . . . Construction Impeded . | . . . Haulers Reinforced . | . . . Active Scanning Responses . | . . . Cargo Convoy Interrupts . | . . . Stealth | -11 -10 -10 --------- Run | Yrd Mat Min Distress Signals 2 | . 2 . Communications Jammed . | . . . Distress Signals . | . . . Times Spotted 25 | . 17 8 Peak Tracking Total 8 | . 8 3 Tactical Retreats 2 | . 1 1 Traps | -11 -10 -10 ------- Run | Yrd Mat Min Traps Triggered 1 | . 1 . Indirectly . | . . . Trap Hack Attempts . | . . . Triggered . | . . . Disarmed . | . . . Reprogrammed . | . . . Reused . | . . . Traps Extracted . | . . . Installed . | . . . Triggered . | . . . Machines | -11 -10 -10 ---------- Run | Yrd Mat Min Machines Disabled 1 | . 1 . Max in Single Turn 1 | . 1 . Machines Repaired . | . . . Machines Dismantled . | . . . Machines Sabotaged . | . . . Overloaded Fab Kills . | . . . Hacking | -11 -10 -10 --------- Run | Yrd Mat Min Machines Accessed 1 | . 1 . Terminals 1 | . 1 . Fabricators . | . . . Repair Stations . | . . . Recycling Units . | . . . Scanalyzers . | . . . Garrison Access . | . . . Total Hacks 2 | . 2 . Successful . | . . . Failed 2 | . 2 . Catastrophic 1 | . 1 . Database Lockouts . | . . . Manual 2 | . 2 . Terminals 2 | . 2 . Fabricators . | . . . Repair Stations . | . . . Recycling Units . | . . . Scanalyzers . | . . . Garrison Access . | . . . Terminal Hacks . | . . . Fabricator Hacks . | . . . Repair Station Hacks . | . . . Recycling Unit Hacks . | . . . Scanalyzer . | . . . Garrison Access Hacks . | . . . Unauthorized Hacks . | . . . Terminals . | . . . Fabricators . | . . . Repair Stations . | . . . Recycling Units . | . . . Scanalyzers . | . . . Garrison Access . | . . . Data Cores Recovered . | . . . Used . | . . . Hacking Detections 1 | . 1 . Full Trace Events 1 | . 1 . Feedback Events . | . . . Feedback Blocked . | . . . Robot Schematics Acquired . | . . . Robots Built . | . . . Authchips . | . . . Time . | . . . Total Robot Build Rating . | . . . Part Schematics Acquired . | . . . Parts Built . | . . . Authchips . | . . . Time . | . . . Total Part Build Rating . | . . . Parts Repaired . | . . . Time . | . . . Parts Recycled . | . . . Recycled Matter . | . . . Retrieved Matter . | . . . Retrieved Components . | . . . Parts Scanalyzed . | . . . Part Schematics Acquired . | . . . Parts Damaged . | . . . Bothacking | -11 -10 -10 ------------ Run | Yrd Mat Min Used RIF Installer . | . . . Robots Hacked 1 | . 1 . Non-combat 1 | . 1 . Combat . | . . . Robot Hacks Applied 1 | . 1 . find_recycling 1 | . 1 . Relay Couplers Released . | . . . Fabnet Peak Effective % . | . . . Robots Rewired . | . . . Allies Hacked . | . . . Hacks Repelled . | . . . Allies | -11 -10 -10 -------- Run | Yrd Mat Min Total Allies . | . . . Largest Group . | . . . Highest-Rated Group . | . . . Highest-Rated Ally . | . . . Total Orders . | . . . Ally Attacks . | . . . Total Damage . | . . . Kills . | . . . Allies Corrupted . | . . . Allies Melted . | . . . Intel | -11 -10 -10 ------- Run | Yrd Mat Min Robot Analysis Total . | . . . Derelict Logs Recovered 1 | . . 1 Drone Launches . | . . . Drone Recoveries . | . . . Exploration | -11 -10 -10 ------------- Run | Yrd Mat Min Turns Passed 1146 | 204 579 363 Spaces Moved 571 | 75 284 212 Core 3 | 3 . . Treads 145 | 72 73 . Legs 423 | . 211 212 Wheels . | . . . Hover . | . . . Flight . | . . . Fastest Speed 50 | 50 120 120 Average Speed 129 | 155 130 120 Slowest Speed 160 | 160 160 120 Overloaded Moves . | . . . Propulsion Burnouts . | . . . Robots Hopped . | . . . Cave-ins Triggered . | . . . Exploration Rate (%) 28 | 4 37 43 Regions Visited 2 Branch Regions 1 Pre-discovered Areas . | . . . Known Exits Taken 1 | . 1 . Unknown Exits Taken 1 | 1 . . Scrap Searched 1 | . . 1 Spaces Dug . | . . . Terrain Destroyed 2 | . 2 . Melee . | . . . Projectile 2 | . 2 . AOE . | . . . Terrain Rammed . | . . . Walls Destroyed . | . . . Machines Disabled . | . . . Actions | -11 -10 -10 --------- Run | Yrd Mat Min Total 772 | 113 389 270 Wait 25 | 1 14 10 Move 569 | 74 283 212 Hop . | . . . Pick Up 20 | 8 8 4 Fast Attach 12 | 7 3 2 Attach 5 | . 5 . Detach . | . . . Swap 24 | . 15 9 Drop 18 | . 10 8 Fire 98 | 23 50 25 Melee 1 | . 1 . Ram . | . . . Kick . | . . . Crush . | . . . Escape Stasis . | . . . Rewire . | . . . Trap . | . . . Miscellaneous . | . . . Route ------- -11/Scrapyard -10/Materials (discovered 2 exits: *Mat / *Min) -10/Mines (discovered 1 exit: *Mat) History --------- Turn | Location | Event 8 | -11/Scrapyard | Discovered new exit (range 14) 205 | -11/Scrapyard | Entered Materials 308 | -10/Materials | Build established: Mutant 389 | -10/Materials | Core integrity fell below 50% 437 | -10/Materials | Lost 6 parts (1p2n1u2w) 646 | -10/Materials | Discovered new exit (range 7) 723 | -10/Materials | Discovered new exit (range 16) 743 | -10/Materials | Build established: Scavenger-Mutant 745 | -10/Materials | Identified exit to Materials 782 | -10/Materials | Identified exit to Mines 784 | -10/Materials | Entered Mines 789 | -10/Mines | Discovered exit to Materials (range 5) 888 | -10/Mines | Core integrity fell below 20% 966 | -10/Mines | Learned location of 1 exit from Materials 1028 | -10/Mines | Found DCF Scrap (15 items) 1147 | -10/Mines | Destroyed by G-47 Trooper with Particle Gun Last Messages --------------- 01028_ Found Targeting Computer. 01028_ Found Sml. Storage Unit. 01028_ Found Structural Scanner. 01028_ Found Datajack. 01028_ Found EM Pulse Gun. 01028_ Found Assault Rifle. 01028_ Found 164 Matter. A note is attached: "With love, from the DCF." 01029_ Acquired 151 matter. 01029_ Dropped Sml. Laser. 01032_ Acquired Assault Rifle. 01033_ Dropped Sml. Laser. 01035_ Acquired EM Pulse Gun. 01040_ Acquired Targeting Computer. 01042_ Dropped Ion Engine. 01045_ Acquired 13 matter. 01050_ Dropped Aluminum Leg. 01050_ Acquired Wheel. 01051_ Dropped Wheel. 01054_ Acquired Sml. Laser. Map ----- +----------------------------------------------------+ | ??########??????????????????? | | ??# #??????????????????? | | ??# #??????????????????? | | ??# """ #??????????????????? | | ??# """ #??????????????????? | | ??# """ #????###???????????? | | ??# #????# ???????????? | | ??# """ #????# #???????????? | | ??# """ #????# #???????????? | | ??# """ #????# #???????????? | | ??# #????# #??????????? | | ??# """ ###### #??????????? | | ??# """ #?????????? | | ??# """ ###### #?????????? | | ??# #????# #?????????# | | ??# """ #????# #????##### | | ??# """ #????# #???## # | | ??# """ #????# #???# #? | | ??# #????# #???# #?? | | ??## #####????# #????# #??? | | ???# #????????# #????## #??? | | ???# #????????# #?????# #??? | | ???# #????????# #?#####[=#??? | | ???# #????????# ###*! *=[#??? | | ???# #????????# * ! = #??? | | ???#@####?????#####!/#####??? | | ???# gg #?????????#==#??????? | | ???#### #?????????# #??????? | | ??????# #?????????# #???#### | | ??????" ?????????# ##?## | | ??????" #????????# ### | | ??????" #???###??# | | ?????? ????# #?# | | ????? #???# ### | | ?????#####????# ### ##### | | ??????????###### ##### | | ??????????# ## | | ??????????# #### !*######## | | ??????????????# !*###???# | | ??????????????# *[= ##??# | | ??????????????# #??# | | ??????????????# #?## | | ??????????????## #?# | | ???????????????### ##?# | | ?????????????????## #??# * | | ???????????????????# #??# | | ???????????????????# #??# | | ??????????????????## #??# | | ?????????????????## #??# | | ???????????####### #### | +----------------------------------------------------+ Best States ------------- Heat Dissipation 35 Energy Generation 14 Energy Capacity 250 Matter Stores 300 Matter Capacity 300 Sight Range 16 Robot Scan Range 14 Terrain Scan Density 10 Evasion (%) 55 Recoil Reduction 2 Item Schematics ----------------- None Robot Schematics ------------------ None Fabricated ------------ Nothing Alien Tech Used ----------------- None Achievements -------------- None Challenges ------------ None Game ------ Seed SuperdensePhasingInterpreter Manual? 0 Play Time 00:19:02 Cumulative 20.1 hours Start 2024.08.22 @ 21:10:21 End 2024.08.22 @ 22:47:01 Sessions 1 Manual Loads 0 Difficulty Rogue Special Mode None Game No. 12 Rogue 12 Adventurer 0 Explorer 0 Win Type - Total 0 Types 0/0/0/0/0/0/0/0/0 Lore% 10 Gallery% 19 Achievement% 17 Wizard Run 0 Options --------- Layout 0 ASCII 0 Keyboard 1 Movement Vi Keybinds 0 Fullscreen 1 Font 12/Smallcaps Map View 83x54 Zoom Use 1% Tactical HUD 1 Map Filters NONE Filters NONE Steam 1 RUN: 03442f8c-abeb-4dd1-9c61-8a54197c7334